bitfinex-derivatives/quotes_SOLF0:USTF0_20241231
["timestamp","ask_amount","ask_price","bid_price","bid_amount"]
[1735645810454,2.88,194.04,193.98,8.14963648]
[1735645810648,8.14963648,194.06,194.03,2.5809]
[1735645811146,8.14963648,194.06,194.04,2.5807]
[1735645811650,2.88,194.07,194.04,2.5807]
[1735645811954,8.14963648,194.06,194.04,2.51121604]
[1735645813047,8.14963648,194.06,194.0,8.14963648]
[1735645813251,8.14963648,194.06,194.05,2.5806]
[1735645815951,8.14963648,194.07,194.05,2.5806]
[1735645816950,8.14963648,194.07,194.04,2.5807]
[1735645817654,8.14963648,194.07,194.05,2.5805]
[1735645819055,8.14963648,194.07,194.0,8.14963648]
[1735645819358,8.14963648,194.07,194.06,2.5805]
[1735645823962,8.14963648,194.07,194.05,2.5805]
[1735645824463,8.14963648,194.07,193.99,8.14963648]
[1735645824669,8.14963648,194.05,194.04,2.5807]
[1735645828168,8.14963648,194.07,194.04,2.5807]
[1735645833070,28.58207858,194.12,194.03,8.14963648]
[1735645833267,8.14963648,194.09,194.07,2.5803]
[1735645836672,8.14963648,194.09,194.06,2.5804]
[1735645839778,8.14963648,194.07,194.04,2.5807]
[1735645842574,8.14963648,194.05,194.04,2.5807]
[1735645852475,8.14963648,194.05,194.03,2.5808]
[1735645853878,8.14963648,194.05,193.97,8.14963648]
[1735645854077,8.14963648,194.05,194.04,2.5807]
[1735645863984,11.02963648,194.07,194.06,2.5805]
[1735645866882,8.14963648,194.07,194.06,2.5805]
[1735645867080,11.02963648,194.07,194.06,2.5805]
[1735645868285,11.02963648,194.07,194.05,2.5806]
[1735645869286,11.02963648,194.07,194.01,2.581]
[1735645869483,8.14963648,194.02,194.01,2.581]
[1735645875090,8.14963648,194.02,193.96,55.47215232]
[1735645876395,8.14963648,194.02,193.97,2.5816]
[1735645876595,8.14963648,194.02,193.96,55.47215232]
[1735645877296,8.14963648,194.02,193.99,2.5813]
[1735645877592,11.02963648,194.02,193.97,2.5816]
[1735645878398,8.14963648,194.0,193.92,2.37237619]
[1735645878588,8.14963648,193.98,193.92,2.37237619]
[1735645878794,8.14963648,193.96,193.92,2.37237619]
[1735645879101,8.14963648,193.94,193.92,2.37237619]
[1735645879900,8.14963648,193.94,193.92,4.95467619]
[1735645880099,8.14963648,193.94,193.92,2.37237619]
[1735645881800,8.14963648,193.94,193.92,4.95467619]
[1735645882002,8.14963648,193.94,193.92,2.37237619]
[1735645883205,8.14963648,193.94,193.93,2.5822]
[1735645887508,8.14963648,193.94,193.92,4.95467619]
[1735645888807,8.14963648,193.94,193.92,2.37237619]
[1735645889009,8.14963648,193.94,193.93,2.5822]
[1735645898812,8.14963648,193.98,193.92,8.14963648]
[1735645899016,11.02963648,194.0,193.94,8.14963648]
[1735645899816,11.02963648,194.0,193.98,2.5814]
[1735645900209,8.14963648,194.0,193.98,2.5814]
[1735645902218,8.14963648,194.0,193.97,2.5816]
[1735645903922,8.14963648,193.98,193.97,2.5816]
[1735645908018,8.14963648,194.0,193.93,8.14963648]
[1735645908218,8.14963648,194.0,193.99,2.5814]
[1735645909220,8.14963648,194.0,193.98,2.5815]
[1735645912824,8.14963648,194.0,193.95,2.5819]
[1735645913018,8.14963648,194.0,193.93,8.14963648]
[1735645913823,8.14963648,194.0,193.98,2.5815]
[1735645921935,8.14963648,194.0,193.93,8.14963648]
[1735645922140,8.14963648,193.96,193.91,1.4808]
[1735645922833,8.14963648,193.94,193.89,3.0912]
[1735645923337,8.14963648,193.94,193.93,2.5822]
[1735645923643,8.14963648,193.94,193.89,3.0912]
[1735645924437,8.14963648,193.94,193.92,2.5822]
[1735645924936,8.14963648,193.94,193.93,2.5822]
[1735645925136,11.02963648,193.95,193.93,2.5822]
[1735645928037,8.14963648,193.97,193.89,11.24083648]
[1735645928236,8.14963648,193.97,193.91,8.14963648]
[1735645928438,11.02963648,193.99,193.93,8.14963648]
[1735645928640,8.14963648,194.0,193.93,8.14963648]
[1735645929538,8.14963648,194.0,193.98,2.5815]
[1735645930335,8.14963648,194.0,193.92,1.5053]
[1735645930544,8.14963648,194.0,193.91,8.14963648]
[1735645930545,8.14963648,193.96,193.91,8.14963648]
[1735645930845,8.14963648,193.96,193.89,11.24083648]
[1735645932244,8.14963648,193.94,193.91,2.5825]
[1735645933536,8.14963648,193.94,193.92,2.5823]
[1735645936551,2.88,193.96,193.92,2.5823]
[1735645936757,8.14963648,193.94,193.92,2.5823]
[1735645940745,8.14963648,193.94,193.93,2.5822]
[1735645942663,8.14963648,193.94,193.8,10.04078824]
[1735645942864,8.14963648,193.92,193.85,8.14963648]
[1735645943163,2.88,193.96,193.85,8.14963648]
[1735645943358,8.14963648,193.93,193.85,8.14963648]
[1735645943558,8.14963648,193.93,193.88,2.5828]
[1735645943753,8.14963648,193.93,193.87,8.14963648]
[1735645944160,8.14963648,193.93,193.91,2.5824]
[1735645944658,2.88,193.94,193.93,2.5822]
[1735645944967,11.02963648,193.94,193.93,2.5822]
[1735645952669,8.14963648,193.96,193.89,8.14963648]
[1735645952873,8.14963648,193.96,193.95,2.5818]
[1735645963671,8.14963648,193.96,193.94,2.582]
[1735645965983,8.14963648,193.96,193.95,2.5819]
[1735645967378,8.14963648,193.96,193.94,2.5819]
[1735645968688,8.14963648,193.96,193.89,8.14963648]
[1735645968881,8.14963648,193.96,193.95,2.5819]
[1735645972584,8.14963648,193.96,193.89,8.14963648]
[1735645973387,8.14963648,193.96,193.91,2.5825]
[1735645973689,8.14963648,193.96,193.89,8.14963648]
[1735645973880,8.14963648,193.96,193.92,2.5822]
[1735645974486,8.14963648,193.96,193.89,8.14963648]
[1735645974689,8.14963648,193.96,193.93,2.5821]
[1735645976391,8.14963648,193.96,193.94,2.5821]
[1735645980188,8.14963648,193.96,193.88,8.14963648]
[1735645980390,8.14963648,193.96,193.94,2.582]
[1735645982689,8.14963648,193.96,193.88,8.14963648]
[1735645982690,8.14963648,193.96,193.95,2.5819]
[1735645984994,8.14963648,193.96,193.88,8.14963648]
[1735645985294,8.14963648,193.96,193.94,2.582]
[1735645991200,11.02963648,193.95,193.94,2.582]
[1735645993599,11.02963648,193.95,193.86,1.5209]
[1735645993790,8.14963648,193.91,193.86,1.5209]
[1735645993989,2.88,193.9,193.86,1.5209]
[1735645994592,2.88,193.9,193.89,2.5827]
[1735645994800,2.88,193.9,193.86,1.5209]
[1735645995194,2.88,193.9,193.88,2.5828]
[1735645996904,2.88,193.9,193.85,2.5832]
[1735645997094,2.88,193.9,193.83,56.65608035]
[1735645997699,2.88,193.9,193.87,2.583]
[1735646001201,11.02963648,193.9,193.87,2.583]
[1735646001998,11.02963648,193.9,193.8,8.0477]
[1735646001999,8.14963648,193.88,193.8,2.5839]
[1735646002297,2.88,193.9,193.78,8.14963648]
[1735646002298,8.14963648,193.85,193.78,8.14963648]
[1735646002491,11.02963648,193.85,193.78,8.14963648]
[1735646003297,11.02963648,193.85,193.82,2.5836]
[1735646004401,11.02963648,193.85,193.78,8.14963648]
[1735646005909,11.02963648,193.85,193.83,2.5835]
[1735646009010,11.02963648,193.85,193.78,8.14963648]
[1735646010514,11.02963648,193.85,193.83,2.5835]
[1735646014516,11.02963648,193.85,193.84,2.5834]
[1735646014717,2.88,193.87,193.82,8.14963648]
[1735646015115,8.14963648,193.88,193.82,8.14963648]
[1735646015416,8.14963648,193.88,193.87,2.583]
[1735646017521,2.88,193.91,193.89,2.5827]
[1735646017715,8.14963648,193.9,193.89,2.5827]
[1735646025025,8.14963648,193.9,193.86,2.5831]
[1735646025226,8.14963648,193.87,193.86,2.5831]
[1735646029423,8.14963648,193.87,193.8,12.75543648]
[1735646029623,8.14963648,193.87,193.85,2.5832]
[1735646030322,2.88,193.92,193.85,2.5832]
[1735646030523,8.14963648,193.89,193.85,2.5832]
[1735646032122,2.88,193.9,193.85,2.5832]
[1735646032327,31.46207858,193.94,193.84,8.14963648]
[1735646032524,8.14963648,193.92,193.84,8.14963648]
[1735646033122,10.02551964,193.94,193.89,2.5827]
[1735646033622,8.14963648,193.92,193.89,2.5827]
[1735646035128,8.14963648,193.92,193.86,2.5831]
[1735646035329,8.14963648,193.92,193.84,8.14963648]
[1735646035724,8.14963648,193.92,193.87,2.5829]
[1735646035927,8.14963648,193.9,193.83,2.88]
[1735646036323,8.14963648,193.9,193.85,2.5831]
[1735646037832,8.14963648,193.9,193.82,8.14963648]
[1735646038827,8.14963648,193.9,193.86,2.5831]
[1735646040228,8.14963648,193.9,193.82,8.14963648]
[1735646040435,8.14963648,193.9,193.85,2.5832]
[1735646041633,8.14963648,193.88,193.85,2.5832]
[1735646042930,8.14963648,193.88,193.81,8.14963648]
[1735646043134,8.14963648,193.88,193.86,2.5831]
[1735646043529,8.14963648,193.88,193.81,8.14963648]
[1735646043729,8.14963648,193.88,193.85,2.5832]
[1735646044833,8.14963648,193.88,193.81,8.14963648]
[1735646045029,8.14963648,193.86,193.83,2.5835]
[1735646046229,8.14963648,193.86,193.84,2.5833]
[1735646047037,2.88,193.89,193.84,2.5833]
[1735646047232,8.14963648,193.87,193.84,2.5833]
[1735646047633,8.14963648,193.87,193.83,2.5835]
[1735646048035,8.14963648,193.85,193.79,8.14963648]
[1735646048229,8.14963648,193.85,193.82,2.5836]
[1735646048633,8.14963648,193.85,193.78,8.14963648]
[1735646048832,8.14963648,193.85,193.81,2.5838]
[1735646049135,8.14963648,193.85,193.78,8.14963648]
[1735646049336,8.14963648,193.83,193.79,2.584]
[1735646049631,11.02963648,193.83,193.79,2.584]
[1735646050936,11.02963648,193.83,193.8,2.5839]
[1735646054040,11.02963648,193.83,193.76,40.22661462]
[1735646054241,11.02963648,193.83,193.82,2.5837]
[1735646054942,8.14963648,193.83,193.82,2.5837]
[1735646055138,11.02963648,193.85,193.84,2.5834]
[1735646056043,8.14963648,193.85,193.84,2.5834]
[1735646061744,2.88,193.87,193.84,2.5834]
[1735646061946,2.88,193.87,193.78,1.5617]
[1735646062241,8.14963648,193.86,193.8,8.14963648]
[1735646062436,10.02551964,193.92,193.84,8.14963648]
[1735646062639,7.14551964,193.92,193.86,8.14963648]
[1735646063047,7.14551964,193.92,193.91,2.5825]
[1735646063848,8.14963648,193.93,193.92,2.5823]
[1735646066745,2.88,193.96,193.93,2.5822]
[1735646067051,8.14963648,193.95,193.88,8.14963648]
[1735646067448,8.14963648,193.95,193.94,2.582]
[1735646074755,8.14963648,193.95,193.93,2.5822]
[1735646076855,8.14963648,193.95,193.88,8.14963648]
[1735646077454,8.14963648,193.95,193.93,2.5821]
[1735646081759,8.14963648,193.95,193.88,8.14963648]
[1735646082457,8.14963648,193.95,193.94,2.5821]
[1735646082651,2.88,193.97,193.88,8.14963648]
[1735646082853,8.14963648,193.96,193.88,11.02963648]
[1735646083556,8.14963648,193.96,193.9,8.14963648]
[1735646083759,8.14963648,193.96,193.94,2.582]
[1735646085159,8.14963648,193.96,193.93,2.5822]
[1735646089058,8.14963648,193.96,193.94,2.582]
[1735646092461,8.14963648,193.96,193.93,2.5822]
[1735646092661,8.14963648,193.96,193.89,8.14963648]
[1735646093268,8.14963648,193.96,193.91,2.5824]
[1735646093463,8.14963648,193.96,193.89,8.14963648]
[1735646095466,8.14963648,193.96,193.94,2.5821]
[1735646096266,8.14963648,193.96,193.95,2.5819]
[1735646096666,28.58207858,194.0,193.95,2.5819]
[1735646096864,8.14963648,193.96,193.95,2.5819]
[1735646105776,7.14551964,193.98,193.97,2.5817]
[1735646107177,7.14551964,193.98,193.95,8.14963648]
[1735646107178,15.29515612,194.02,193.99,2.5814]
[1735646108274,15.29515612,194.02,193.95,8.14963648]
[1735646108474,15.29515612,194.02,194.0,2.5812]
[1735646108475,8.14963648,194.02,194.0,2.5812]
[1735646108983,8.14963648,194.02,194.01,2.5811]
[1735646110279,28.58207858,194.05,193.97,8.14963648]
[1735646110479,36.73171506,194.05,193.97,8.14963648]
[1735646110680,8.14963648,194.05,193.97,8.14963648]
[1735646112474,8.14963648,194.05,194.02,2.581]
[1735646112675,8.14963648,194.03,193.97,8.14963648]
[1735646112983,8.14963648,194.01,193.97,2.5816]
[1735646114684,8.14963648,194.01,193.95,8.14963648]
[1735646114985,8.14963648,194.01,193.98,2.5815]
[1735646116681,8.14963648,194.01,193.93,36.01153117]
[1735646116881,8.14963648,194.01,193.97,2.5816]
[1735646118083,8.14963648,194.01,193.94,8.14963648]
[1735646118284,8.14963648,194.01,193.98,2.5815]
[1735646124889,1.5003,194.05,193.98,2.5815]
[1735646125291,8.14963648,194.01,193.98,2.5815]
[1735646126591,7.14551964,194.06,193.96,8.14963648]
[1735646126891,15.29515612,194.06,193.98,8.14963648]
[1735646127098,15.29515612,194.06,193.98,11.02963648]
[1735646127293,8.14963648,194.04,193.98,11.02963648]
[1735646127489,8.14963648,194.02,193.96,8.14963648]
[1735646128494,8.14963648,194.02,193.97,2.5816]
[1735646129894,8.14963648,194.02,193.98,2.5815]
[1735646131999,2.88,194.04,193.98,2.5815]
[1735646132200,8.14963648,194.02,193.98,2.5815]
[1735646137996,2.88,194.04,193.98,2.5815]
[1735646138203,8.14963648,194.02,193.98,2.5815]
[1735646139401,2.88,194.04,193.98,2.5815]
[1735646139595,8.14963648,194.03,193.98,2.5815]
[1735646140403,2.88,194.04,193.98,2.5815]
[1735646140705,8.14963648,194.0,193.94,2.582]
[1735646140904,8.14963648,193.96,193.93,33.13153117]
[1735646141204,8.14963648,193.94,193.9,2.5826]
[1735646141404,8.14963648,193.92,193.87,2.25916624]
[1735646141905,8.14963648,193.92,193.89,2.5827]
[1735646142694,11.02963648,193.94,193.89,2.5827]
[1735646143802,11.02963648,193.94,193.9,2.5826]
[1735646150808,8.14963648,193.92,193.87,4.84206624]
[1735646151009,8.14963648,193.9,193.87,2.25916624]
[1735646151314,8.14963648,193.88,193.79,11.28373648]
[1735646151512,8.14963648,193.86,193.79,11.28373648]
[1735646152110,8.14963648,193.86,193.8,2.5839]
[1735646152315,8.14963648,193.86,193.79,8.14963648]
[1735646152515,8.14963648,193.84,193.79,8.14963648]
[1735646152812,8.14963648,193.84,193.79,10.73363648]
[1735646153115,8.14963648,193.86,193.79,8.14963648]
[1735646153717,8.14963648,193.86,193.8,2.5838]
[1735646154014,8.14963648,193.82,193.76,8.14963648]
[1735646154208,8.14963648,193.84,193.76,8.14963648]
[1735646154410,8.14963648,193.84,193.78,2.5841]
[1735646154616,8.14963648,193.84,193.76,8.14963648]
[1735646155211,8.14963648,193.84,193.79,2.584]
[1735646155918,2.88,193.88,193.79,2.584]
[1735646156117,8.14963648,193.84,193.79,2.584]
[1735646156918,8.14963648,193.84,193.8,2.5839]
[1735646157723,2.88,193.88,193.78,8.14963648]
[1735646157923,57.35602713,193.92,193.8,8.14963648]
[1735646158119,8.14963648,193.87,193.8,8.14963648]
[1735646161222,8.14963648,193.87,193.82,2.5836]
[1735646161923,8.14963648,193.87,193.84,2.5834]
[1735646163724,8.14963648,193.87,193.82,2.5836]
[1735646163931,8.14963648,193.87,193.8,8.14963648]
[1735646164230,2.88,193.88,193.84,2.5833]
[1735646164431,11.02963648,193.88,193.84,2.5833]
[1735646164930,57.35602713,193.92,193.84,8.14963648]
[1735646165227,8.14963648,193.91,193.84,8.14963648]
[1735646165630,8.14963648,193.91,193.87,2.5829]
[1735646166223,8.14963648,193.91,193.86,2.5831]
[1735646167329,8.14963648,193.91,193.85,2.5832]
[1735646167624,8.14963648,193.89,193.85,2.5832]
[1735646171428,8.14963648,193.89,193.82,8.14963648]
[1735646171626,8.14963648,193.89,193.86,2.5831]
[1735646175526,8.14963648,193.89,193.82,8.14963648]
[1735646177338,8.14963648,193.87,193.84,2.5834]
[1735646179633,8.14963648,193.87,193.79,8.14963648]
[1735646179934,8.14963648,193.87,193.85,2.5833]
[1735646186843,8.14963648,193.87,193.79,8.14963648]
[1735646187045,8.14963648,193.87,193.84,2.5833]
[1735646191445,8.14963648,193.87,193.85,2.5832]
[1735646191649,8.14963648,193.87,193.81,8.14963648]
[1735646191844,11.02963648,193.89,193.81,8.14963648]
[1735646192246,11.02963648,193.89,193.86,2.5831]
[1735646193553,8.14963648,193.89,193.86,2.5831]
[1735646193850,11.02963648,193.89,193.86,2.5831]
[1735646195446,8.14963648,193.89,193.86,2.5831]
[1735646195648,8.14963648,193.89,193.83,8.14963648]
[1735646196753,8.14963648,193.89,193.87,2.5829]
[1735646202361,8.14963648,193.89,193.83,2.5835]
[1735646202660,8.14963648,193.87,193.83,2.5835]
[1735646203762,8.14963648,193.87,193.8,8.14963648]
[1735646203966,8.14963648,193.87,193.84,2.5834]
[1735646206368,8.14963648,193.89,193.8,8.14963648]
[1735646206668,8.14963648,193.89,193.82,8.14963648]
[1735646207567,8.14963648,193.89,193.87,2.5829]
[1735646210669,8.14963648,193.89,193.84,2.5834]
[1735646210865,8.14963648,193.87,193.84,2.5834]
[1735646220771,2.88,193.9,193.8,8.14963648]
[1735646220970,8.14963648,193.88,193.85,2.5832]
[1735646223785,11.02963648,193.88,193.85,2.5832]
[1735646224582,11.02963648,193.88,193.8,8.14963648]
[1735646224782,11.02963648,193.88,193.86,2.5831]
[1735646225784,8.14963648,193.88,193.86,2.5831]
[1735646229190,8.14963648,193.88,193.85,2.5832]
[1735646231590,11.02963648,193.88,193.85,2.5832]
[1735646231790,11.02963648,193.88,193.82,8.14963648]
[1735646231991,11.02963648,193.88,193.86,2.5831]
[1735646241101,11.02963648,193.88,193.8,8.14963648]
[1735646242002,11.02963648,193.88,193.84,2.5833]
[1735646247011,11.02963648,193.88,193.81,8.14963648]
[1735646247212,11.02963648,193.88,193.85,2.5833]
[1735646249506,2.88,193.88,193.85,2.5833]
[1735646249709,2.88,193.88,193.81,8.14963648]
[1735646250411,2.88,193.88,193.87,2.583]
[1735646257019,8.14963648,193.89,193.83,8.14963648]
[1735646257224,28.58207858,193.92,193.85,8.14963648]
[1735646257524,36.73171506,193.92,193.85,8.14963648]
[1735646258122,36.73171506,193.92,193.87,2.583]
[1735646258322,36.73171506,193.92,193.85,8.14963648]
[1735646258925,8.14963648,193.92,193.89,2.5826]
[1735646264730,2.88,193.93,193.91,2.5824]
[1735646264925,11.02963648,193.93,193.91,2.5824]
[1735646265731,11.02963648,193.93,193.85,8.14963648]
[1735646265930,11.02963648,193.93,193.9,2.5826]
[1735646266230,11.02963648,193.93,193.85,8.14963648]
[1735646266629,11.02963648,193.93,193.9,2.5826]
[1735646267130,8.14963648,193.93,193.9,2.5826]
[1735646271831,7.14551964,193.97,193.95,2.5818]
[1735646272031,7.14551964,193.97,193.91,8.14963648]
[1735646272625,7.14551964,193.97,193.93,8.14963648]
[1735646272926,8.14963648,193.99,193.93,8.14963648]
[1735646273431,8.14963648,193.99,193.96,2.5818]
[1735646284745,8.14963648,193.99,193.92,8.14963648]
[1735646285748,8.14963648,193.99,193.96,2.5817]
[1735646286444,8.14963648,193.99,193.95,2.5818]
[1735646286946,8.14963648,193.99,193.92,8.14963648]
[1735646289748,8.14963648,193.99,193.91,2.88]
[1735646290048,8.14963648,193.99,193.92,8.14963648]
[1735646290451,8.14963648,193.99,193.96,2.5818]
[1735646292855,8.14963648,193.99,193.92,8.14963648]
[1735646293054,8.14963648,193.99,193.97,2.5817]
[1735646293556,3.1184,194.05,193.97,2.5817]
[1735646293757,8.14963648,193.99,193.97,2.5817]
[1735646305263,8.14963648,193.99,193.96,2.5817]
[1735646311267,8.14963648,193.99,193.79,14.49775358]
[1735646311268,8.14963648,193.97,193.79,14.49775358]
[1735646311567,8.14963648,193.91,193.85,8.14963648]
[1735646311867,8.14963648,193.91,193.85,15.31042472]
[1735646312067,8.14963648,193.91,193.88,2.5829]
[1735646314869,2.88,193.93,193.88,2.5829]
[1735646315162,8.14963648,193.92,193.88,2.5829]
[1735646317370,8.14963648,193.9,193.73,57.28630598]
[1735646317662,8.14963648,193.86,193.79,8.14963648]
[1735646317870,8.14963648,193.88,193.83,2.5835]
[1735646318064,2.88,193.87,193.79,8.14963648]
[1735646318271,2.88,193.87,193.81,8.14963648]
[1735646318866,8.14963648,193.88,193.85,2.5833]
[1735646319070,2.88,193.87,193.83,8.14963648]
[1735646319671,2.88,193.87,193.75,4.724]
[1735646319973,2.88,193.87,193.83,8.14963648]
[1735646320363,2.88,193.87,193.86,2.5831]
[1735646324373,2.88,193.88,193.86,2.5831]
[1735646325775,11.02963648,193.88,193.76,2.5844]
[1735646325972,8.14963648,193.82,193.74,8.14963648]
[1735646326171,2.88,193.81,193.74,8.14963648]
[1735646326375,2.88,193.81,193.68,7.16078824]
[1735646326675,2.88,193.81,193.74,8.14963648]
[1735646327276,8.14963648,193.82,193.78,2.5841]
[1735646327574,2.88,193.81,193.78,2.5841]
[1735646330568,8.14963648,193.82,193.77,2.5842]
[1735646330773,2.88,193.81,193.76,8.14963648]
[1735646330974,2.88,193.82,193.76,8.14963648]
[1735646332274,2.88,193.82,193.79,2.584]
[1735646335879,2.88,193.82,193.78,8.14963648]
[1735646336382,2.88,193.82,193.8,2.5838]
[1735646336570,2.88,193.82,193.78,8.14963648]
[1735646337370,2.88,193.82,193.81,2.5838]
[1735646337873,2.88,193.84,193.82,2.5836]
[1735646338479,8.14963648,193.86,193.82,2.5836]
[1735646338676,2.88,193.85,193.82,2.5836]
[1735646341588,2.88,193.84,193.82,2.5836]
[1735646344485,2.88,193.84,193.83,2.5835]
[1735646344986,2.88,193.85,193.8,8.14963648]
[1735646345182,2.88,193.85,193.74,1.6016]
[1735646345388,8.14963648,193.87,193.79,8.14963648]
[1735646345886,2.88,193.86,193.79,8.14963648]
[1735646346579,2.88,193.86,193.82,2.5836]
[1735646347083,2.88,193.86,193.81,8.14963648]
[1735646347988,2.88,193.86,193.83,2.5834]
[1735646349490,8.14963648,193.88,193.81,8.14963648]
[1735646349686,2.88,193.87,193.85,2.5832]
[1735646352191,1.5095,193.91,193.86,2.583]
[1735646352391,2.88,193.9,193.83,8.14963648]
[1735646352893,2.88,193.9,193.87,2.5829]
[1735646354687,2.88,193.9,193.88,2.5828]
[1735646357789,2.88,193.9,193.87,2.5829]
[1735646358186,8.14963648,193.91,193.87,2.5829]
[1735646358394,2.88,193.9,193.87,2.5829]
[1735646359192,2.88,193.91,193.87,2.5829]
[1735646360095,2.88,193.91,193.88,2.5828]
[1735646360891,2.88,193.91,193.85,8.14963648]
[1735646361095,2.88,193.91,193.87,2.583]
[1735646361691,50.23755858,193.93,193.87,2.583]
[1735646361890,2.88,193.92,193.87,8.14963648]
[1735646362699,2.88,193.92,193.89,2.5826]
[1735646362995,61.26719506,193.93,193.89,2.5826]
[1735646363591,11.02963648,193.93,193.89,2.5826]
[1735646365597,11.02963648,193.93,193.86,8.14963648]
[1735646365792,8.14963648,193.91,193.8,1.4817]
[1735646366195,8.14963648,193.89,193.83,8.14963648]
[1735646366397,8.14963648,193.89,193.83,10.73313648]
[1735646366696,2.88,193.88,193.83,10.73313648]
[1735646367297,2.88,193.88,193.82,2.5836]
[1735646368501,2.88,193.88,193.81,8.14963648]
[1735646368801,2.88,193.88,193.83,2.5835]
[1735646369401,2.88,193.88,193.82,2.5836]
[1735646369597,2.88,193.88,193.81,8.14963648]
[1735646369803,2.88,193.88,193.83,2.5835]
[1735646373702,2.88,193.88,193.83,10.73313648]
[1735646373906,2.88,193.88,193.84,2.5834]
[1735646374710,28.58207858,193.92,193.83,8.14963648]
[1735646374901,2.88,193.91,193.85,8.14963648]
[1735646376508,2.88,193.91,193.86,2.583]
[1735646383419,2.88,193.91,193.85,8.14963648]
[1735646383615,2.88,193.91,193.87,2.583]
[1735646390024,2.88,193.91,193.86,2.5831]
[1735646390319,8.14963648,193.9,193.8,1.4817]
[1735646390525,8.14963648,193.9,193.82,8.14963648]
[1735646391024,8.14963648,193.9,193.84,2.5833]
[1735646392027,8.14963648,193.9,193.85,2.5832]
[1735646392229,8.14963648,193.9,193.82,8.14963648]
[1735646392428,28.58207858,193.91,193.84,8.14963648]
[1735646392727,2.88,193.9,193.84,8.14963648]
[1735646393027,28.58207858,193.91,193.86,2.583]
[1735646393229,2.88,193.89,193.86,2.583]
[1735646393427,2.88,193.89,193.84,8.14963648]
[1735646393630,2.88,193.89,193.88,2.5829]
[1735646394328,2.88,193.91,193.88,2.5829]
[1735646395428,2.88,193.91,193.84,8.14963648]
[1735646395630,2.88,193.91,193.87,2.5829]
[1735646397331,16.76265612,193.92,193.87,2.5829]
[1735646397523,2.88,193.91,193.87,2.5829]
[1735646400537,7.14551964,193.92,193.87,8.14963648]
[1735646400839,7.14551964,193.92,193.89,8.14963648]
[1735646401337,7.14551964,193.92,193.91,8.14963648]
[1735646401837,7.14551964,193.92,193.91,10.73213648]
[1735646402336,28.58207858,193.94,193.91,8.14963648]
[1735646403036,28.58207858,193.94,193.92,2.5822]
[1735646403436,2.88,193.96,193.92,2.5822]
[1735646403736,7.14551964,193.97,193.91,8.14963648]
[1735646404037,10.02551964,193.97,193.93,2.5822]
[1735646404228,7.14551964,193.97,193.89,2.88]
[1735646404432,7.14551964,193.97,193.96,10.73143648]
[1735646404633,28.58207858,193.98,193.9,4.8378]
[1735646404828,28.58207858,193.98,193.97,10.73133648]
[1735646405538,28.58207858,193.98,193.97,2.5817]
[1735646405836,36.73171506,194.03,193.97,2.5817]
[1735646406036,8.14963648,194.03,193.97,2.5817]
[1735646406238,2.88,194.04,193.97,2.5817]
[1735646406435,11.02963648,194.04,193.97,2.5817]
[1735646406935,2.88,194.04,193.98,2.5815]
[1735646407129,11.02963648,194.04,193.98,2.5815]
[1735646408237,2.88,194.04,193.99,2.5813]
[1735646408434,2.88,194.04,193.97,8.14963648]
[1735646408629,11.02963648,194.05,193.97,8.14963648]
[1735646408837,11.02963648,194.05,194.0,2.5812]
[1735646410231,11.02963648,194.05,194.01,2.5811]
[1735646410834,8.14963648,194.05,193.99,8.14963648]
[1735646411141,2.88,194.06,194.03,2.5808]
[1735646411436,2.88,194.06,194.01,8.14963648]
[1735646411632,2.88,194.06,193.97,2.5816]
[1735646411835,8.14963648,194.05,193.93,2.88]
[1735646412139,8.14963648,194.05,193.98,8.14963648]
[1735646412333,2.88,194.05,194.0,8.14963648]
[1735646412934,3.0165,194.08,194.0,8.14963648]
[1735646413133,14.04613648,194.08,194.0,8.14963648]
[1735646413332,8.14963648,194.06,193.98,2.5814]
[1735646413535,8.14963648,194.06,193.93,2.88]
[1735646413733,8.14963648,194.06,193.98,8.14963648]
[1735646414336,5.8965,194.08,193.9,4.8378]
[1735646414337,8.14963648,194.04,193.9,4.8378]
[1735646414537,8.14963648,194.02,193.95,8.14963648]
[1735646415336,8.14963648,194.02,193.95,10.73143648]
[1735646415643,2.88,194.03,193.9,4.8378]
[1735646415644,8.14963648,194.0,193.9,4.8378]
[1735646415839,8.14963648,194.0,193.92,8.14963648]